bitfinex-derivatives/quotes_ETHF0:USTF0_20241026
["timestamp","ask_amount","ask_price","bid_price","bid_amount"]
[1729913919005,0.40741,2458.1,2457.9,0.8949]
[1729913919499,0.40742,2458.0,2457.9,0.8949]
[1729913919702,0.40745,2457.9,2457.6,3.75330234]
[1729913920102,0.40745,2457.8,2457.6,3.75330234]
[1729913920704,0.40744,2457.9,2457.6,3.75330234]
[1729913921908,0.40747,2457.7,2457.6,3.75330234]
[1729913923703,3.2078,2458.2,2457.4,6.07560234]
[1729913924005,3.2078,2458.2,2457.4,6.52900234]
[1729913924405,0.4075,2457.5,2457.4,6.52900234]
[1729913924604,3.2078,2458.2,2457.4,6.52900234]
[1729913925111,0.40749,2457.6,2457.4,6.52900234]
[1729913925311,0.4075,2457.5,2457.4,6.52900234]
[1729913926612,3.2078,2458.0,2457.4,6.52900234]
[1729913926812,0.40749,2457.6,2457.4,6.52900234]
[1729913927405,0.4536,2457.8,2457.4,6.52900234]
[1729913927608,0.40748,2457.7,2457.4,6.52900234]
[1729913930011,3.75720234,2457.9,2457.0,6.07560234]
[1729913930214,0.40754,2457.3,2457.0,6.50990234]
[1729913930418,0.40755,2457.2,2457.0,6.50990234]
[1729913930718,0.40757,2457.1,2457.0,6.50990234]
[1729913930921,0.4223,2457.5,2457.0,6.50990234]
[1729913931210,0.40755,2457.3,2457.2,2.86780234]
[1729913932012,0.40757,2457.1,2457.0,6.50990234]
[1729913932713,0.40756,2457.2,2457.0,6.50990234]
[1729913934711,0.40755,2457.3,2457.0,6.50990234]
[1729913934912,0.40756,2457.2,2457.0,6.50990234]
[1729913938214,0.40757,2457.1,2457.0,6.50990234]
[1729913938917,0.40756,2457.2,2457.0,6.50990234]
[1729913939116,0.4344,2457.4,2457.0,6.50990234]
[1729913939322,0.40757,2457.1,2457.0,6.50990234]
[1729913940818,0.4344,2457.4,2457.0,6.50990234]
[1729913941019,0.40756,2457.2,2457.0,6.50990234]
[1729913941225,0.40757,2457.1,2457.0,6.50990234]
[1729913942019,0.40757,2457.1,2457.0,3.2078]
[1729913943128,3.6422,2457.4,2456.8,0.4177]
[1729913943326,0.4076,2456.9,2456.8,0.4177]
[1729913943524,3.6422,2457.4,2456.6,0.409]
[1729913943525,3.2078,2457.1,2456.6,0.409]
[1729913943718,3.2078,2457.1,2456.4,0.4463]
[1729913943719,0.40764,2456.7,2456.4,0.4463]
[1729913944130,0.8838,2456.8,2456.4,0.4463]
[1729913944326,0.40766,2456.6,2456.4,0.4463]
[1729913944929,0.40767,2456.5,2456.4,0.4463]
[1729913945426,0.8838,2456.8,2456.4,0.4463]
[1729913945730,0.40766,2456.6,2456.4,0.4463]
[1729913946026,0.40767,2456.5,2456.4,0.4463]
[1729913947029,0.40766,2456.6,2456.4,0.4463]
[1729913947529,0.40767,2456.5,2456.4,0.4463]
[1729913947726,0.40766,2456.6,2456.4,0.4463]
[1729913948628,0.40767,2456.5,2456.4,0.4463]
[1729913948830,0.8838,2456.8,2456.4,0.4463]
[1729913949024,0.40767,2456.5,2456.4,0.4463]
[1729913949333,0.4077,2456.3,2456.2,3.2078]
[1729913950423,0.4243,2456.4,2456.0,0.4378]
[1729913950622,0.40772,2456.2,2456.0,0.4378]
[1729913950820,0.40772,2456.2,2456.1,3.2078]
[1729913951228,4.47892,2456.2,2456.1,3.2078]
[1729913952126,0.40772,2456.2,2456.1,3.2078]
[1729913952324,0.4077,2456.4,2456.1,6.07560234]
[1729913952522,0.4077,2456.4,2456.2,0.4279]
[1729913952724,0.4077,2456.4,2456.2,0.8563]
[1729913953128,0.4077,2456.3,2456.2,0.8563]
[1729913953531,0.40769,2456.4,2456.2,0.8563]
[1729913953835,0.4077,2456.3,2456.2,0.8563]
[1729913955533,0.40769,2456.4,2456.2,0.8563]
[1729913955936,0.4428,2456.7,2456.2,0.8563]
[1729913956129,0.40769,2456.4,2456.2,0.8563]
[1729913957034,0.4077,2456.3,2456.2,0.8563]
[1729913957231,0.40769,2456.4,2456.2,0.8563]
[1729913957428,0.40765,2456.6,2456.3,2.86780234]
[1729913957633,0.40766,2456.6,2456.4,0.4391]
[1729913958135,3.2078,2456.9,2456.4,0.4391]
[1729913958336,0.40767,2456.5,2456.4,0.4391]
[1729913958538,0.40766,2456.6,2456.4,0.4391]
[1729913959229,0.40767,2456.5,2456.4,0.4391]
[1729913959831,3.2078,2456.9,2456.3,2.86780234]
[1729913960030,0.40769,2456.4,2456.2,0.8563]
[1729913960336,0.40768,2456.5,2456.2,0.8563]
[1729913960723,0.40765,2456.7,2456.3,2.86780234]
[1729913960929,3.2078,2456.9,2456.4,0.4132]
[1729913961231,0.40766,2456.6,2456.4,0.4132]
[1729913961732,0.4437,2457.1,2456.5,7.34666234]
[1729913961928,3.2078,2457.2,2456.7,2.86780234]
[1729913962137,0.40759,2457.0,2456.8,0.8584]
[1729913963843,0.40757,2457.1,2456.8,4.0662]
[1729913964034,3.2078,2457.2,2456.8,4.0662]
[1729913964229,0.40758,2457.1,2456.8,4.0662]
[1729913965434,0.4076,2456.9,2456.8,4.0662]
[1729913966043,0.40759,2457.0,2456.8,4.0662]
[1729913966739,3.6487,2457.2,2456.8,4.0662]
[1729913966935,0.4076,2456.9,2456.8,4.0662]
[1729913967131,6.51650234,2457.2,2456.6,0.4508]
[1729913967541,0.40762,2456.8,2456.6,0.4508]
[1729913967738,0.40762,2456.8,2456.7,0.4336]
[1729913968341,0.40764,2456.7,2456.6,0.4508]
[1729913968543,0.40767,2456.5,2456.4,0.4281]
[1729913970546,0.40772,2456.2,2456.1,6.91440234]
[1729913971045,0.40771,2456.3,2456.1,6.91440234]
[1729913971544,0.40769,2456.4,2456.2,0.4106]
[1729913971745,0.4515,2456.7,2456.2,0.4106]
[1729913971946,0.4077,2456.3,2456.2,0.4106]
[1729913972245,0.4515,2456.7,2456.2,0.4106]
[1729913972544,0.40769,2456.4,2456.2,0.4106]
[1729913973339,0.40765,2456.6,2456.2,0.4106]
[1729913973546,0.4077,2456.4,2456.2,0.4106]
[1729913976538,0.40765,2456.6,2456.2,0.4106]
[1729913976739,0.4077,2456.4,2456.2,0.4106]
[1729913977047,0.4515,2456.7,2456.2,0.4106]
[1729913977248,0.40768,2456.5,2456.2,0.4106]
[1729913977652,0.40769,2456.4,2456.2,0.4106]
[1729913978150,0.40769,2456.4,2456.2,4.4818]
[1729913980040,0.40769,2456.4,2456.2,0.4106]
[1729913980238,0.8673,2456.7,2456.2,0.4106]
[1729913980646,0.40769,2456.4,2456.2,0.4106]
[1729913981053,0.8673,2456.7,2456.2,0.4106]
[1729913981250,0.40768,2456.5,2456.2,0.4106]
[1729913981450,0.40769,2456.4,2456.2,0.4106]
[1729913982650,0.40768,2456.5,2456.2,0.4106]
[1729913982949,0.8673,2456.7,2456.2,0.4106]
[1729913983149,0.45,2456.8,2456.3,2.86780234]
[1729913983352,0.85763,2456.8,2456.3,3.27549234]
[1729913984256,0.45,2456.8,2456.3,2.86780234]
[1729913984462,0.40764,2456.7,2456.3,2.86780234]
[1729913985957,0.45,2456.8,2456.2,0.4106]
[1729913986157,0.4077,2456.4,2456.2,0.4106]
[1729913986352,0.4077,2456.3,2456.2,0.4106]
[1729913987258,0.40769,2456.4,2456.2,0.4106]
[1729913987459,3.2078,2456.7,2456.2,0.4106]
[1729913987659,0.4077,2456.3,2456.2,0.4106]
[1729913989248,0.40769,2456.4,2456.2,0.4106]
[1729913989758,3.2078,2456.7,2456.2,0.4106]
[1729913989759,0.4077,2456.3,2456.2,0.4106]
[1729913990958,0.45,2456.8,2456.2,0.4106]
[1729913991260,0.40769,2456.4,2456.2,0.4106]
[1729913991959,0.40772,2456.2,2456.1,3.2078]
[1729913992954,4.47892,2456.2,2456.1,3.2078]
[1729913995356,0.40772,2456.2,2456.1,3.2078]
[1729913998360,0.40772,2456.2,2455.8,4.0931]
[1729913998555,1.293,2456.3,2455.8,4.0931]
[1729913998860,0.40775,2456.1,2455.8,4.0931]
[1729913999256,0.40772,2456.2,2455.8,4.0931]
[1729913999457,0.40775,2456.1,2455.8,4.0931]
[1729913999659,0.40776,2456.0,2455.8,3.2078]
[1729913999864,1.293,2456.3,2455.8,3.2078]
[1729914000165,0.40777,2455.9,2455.8,3.2078]
[1729914000556,0.40777,2455.9,2455.7,0.4449]
[1729914000758,0.40777,2455.9,2455.8,3.2078]
[1729914001059,1.293,2456.3,2455.8,3.2078]
[1729914001259,0.40775,2456.0,2455.8,3.2078]
[1729914001458,0.40777,2455.9,2455.8,3.2078]
[1729914001658,1.293,2456.3,2455.8,3.2078]
[1729914001860,0.40774,2456.1,2455.8,3.2078]
[1729914002057,0.40776,2456.0,2455.8,3.2078]
[1729914003468,1.70071,2456.3,2455.8,3.61558]
[1729914003665,0.40773,2456.2,2455.8,3.2078]
[1729914005058,0.40773,2456.2,2455.8,3.61558]
[1729914005459,0.40774,2456.1,2455.8,3.2078]
[1729914006665,1.293,2456.3,2455.8,3.2078]
[1729914006666,0.40776,2456.0,2455.8,3.2078]
[1729914007962,2.86780234,2456.2,2455.8,3.2078]
[1729914008264,0.40777,2455.9,2455.8,3.2078]
[1729914009467,2.86780234,2456.2,2455.7,0.4449]
[1729914009865,0.40778,2455.8,2455.7,0.4449]
[1729914010059,2.86780234,2456.2,2455.2,3.92601031]
[1729914010270,1.27661,2455.7,2455.4,3.2078]
[1729914010771,0.8688,2455.7,2455.4,3.2078]
[1729914010963,0.4349,2455.7,2455.4,3.2078]
[1729914011265,3.74680234,2456.0,2455.4,3.2078]
[1729914011266,0.879,2456.0,2455.5,0.40783]
[1729914011468,0.40777,2455.9,2455.4,6.48344234]
[1729914011769,0.40777,2455.9,2455.5,0.40783]
[1729914012167,0.879,2456.0,2455.4,3.61564]
[1729914012374,0.40779,2455.8,2455.4,3.61564]
[1729914012871,0.879,2456.0,2455.4,3.2078]
[1729914013069,0.40779,2455.8,2455.4,3.2078]
[1729914013461,0.879,2456.0,2455.4,3.61565]
[1729914013863,0.40778,2455.9,2455.4,3.61565]
[1729914014070,0.40779,2455.8,2455.4,3.2078]
[1729914014376,1.73006554,2455.8,2455.5,1.32227554]
[1729914014870,1.32227554,2455.8,2455.5,1.32227554]
[1729914015271,1.73005554,2455.9,2455.6,1.32227554]
[1729914015463,1.73005554,2455.9,2455.7,0.8543]
[1729914018270,0.40773,2456.1,2455.8,1.32227554]
[1729914018470,1.73000554,2456.1,2455.8,1.32227554]
[1729914019975,1.32227554,2456.0,2455.8,1.32227554]
[1729914021280,1.73002554,2456.0,2455.8,1.32227554]
[1729914021475,1.32227554,2456.0,2455.8,1.32227554]
[1729914022583,0.879,2456.3,2455.8,1.32227554]
[1729914022783,1.72997554,2456.3,2456.0,1.32227554]
[1729914023083,1.72997554,2456.3,2456.1,0.8577]
[1729914023084,1.32227554,2456.3,2456.1,0.8577]
[1729914023290,0.40766,2456.6,2456.2,1.72999554]
[1729914023475,1.32227554,2456.4,2456.1,2.17997554]
[1729914023675,1.32227554,2456.4,2456.1,2.58770554]
[1729914023879,1.32227554,2456.3,2456.1,0.8577]
[1729914024077,1.72999554,2456.2,2456.1,0.8577]
[1729914024593,0.40775,2456.0,2455.7,1.32227554]
[1729914024777,1.73002554,2456.0,2455.7,2.18497554]
[1729914024975,1.32227554,2456.1,2455.8,1.32227554]
[1729914025278,1.32227554,2456.2,2456.0,1.32227554]
[1729914025477,1.32227554,2456.2,2456.1,2.18497554]
[1729914025882,1.32227554,2456.2,2456.1,0.8627]
[1729914026983,0.40775,2456.0,2455.9,1.32227554]
[1729914027180,0.40775,2456.0,2455.7,2.15247554]
[1729914027379,1.73002554,2456.0,2455.7,0.8302]
[1729914027882,1.73002554,2456.0,2455.7,2.15247554]
[1729914027883,1.32227554,2456.0,2455.7,2.15247554]
[1729914028382,0.84324,2456.1,2455.7,2.15247554]
[1729914028383,0.4355,2456.1,2455.7,0.8302]
[1729914028582,0.40776,2456.0,2455.7,0.8302]
[1729914029275,0.4355,2456.1,2455.7,0.8302]
[1729914029479,0.40778,2455.9,2455.7,0.8302]
[1729914029883,1.27676,2456.0,2455.7,0.8302]
[1729914030488,0.869,2456.0,2455.7,0.8302]
[1729914030984,0.40778,2455.9,2455.7,0.8302]
[1729914031785,0.40778,2455.8,2455.7,0.8302]
[1729914032183,0.40778,2455.8,2455.6,3.2078]
[1729914033992,0.869,2456.0,2455.6,3.2078]
[1729914034387,0.40779,2455.8,2455.6,3.2078]
[1729914034691,0.869,2456.0,2455.6,3.2078]
[1729914034887,0.4078,2455.7,2455.6,3.2078]
[1729914035093,0.40779,2455.8,2455.6,3.2078]
[1729914035485,0.40779,2455.8,2455.7,0.4313]
[1729914036482,0.40778,2455.9,2455.7,0.4313]
[1729914036985,0.40778,2455.8,2455.7,0.4313]
[1729914037492,0.869,2456.0,2455.7,0.4313]
[1729914038184,4.58690032,2456.1,2455.8,0.4263]
[1729914038386,4.58690032,2456.1,2455.9,0.4476]
[1729914038589,4.17915032,2456.1,2455.9,0.4476]
[1729914038888,0.40775,2456.0,2455.9,0.4476]
[1729914039691,1.28675,2456.1,2455.9,0.4476]
[1729914040598,0.879,2456.1,2455.9,0.4476]
[1729914040892,0.40775,2456.0,2455.9,0.4476]
[1729914041479,1.28674,2456.1,2455.9,0.4476]
[1729914042089,0.879,2456.1,2455.9,0.4476]
[1729914042291,0.40775,2456.0,2455.9,0.4476]
[1729914044185,0.40775,2456.0,2455.7,0.4313]
[1729914044390,1.26685,2456.0,2455.7,1.2751]
[1729914045596,0.8591,2456.0,2455.7,1.2751]
[1729914045791,0.40778,2455.9,2455.7,1.2751]
[1729914045992,1.26686,2456.0,2455.7,1.2751]
[1729914047197,0.83146,2456.0,2455.7,1.2751]
[1729914047798,1.28674,2456.1,2455.7,1.2751]
[1729914047999,0.879,2456.1,2455.7,1.2751]
[1729914048600,0.40777,2455.9,2455.7,1.2751]
[1729914050204,0.40776,2456.0,2455.7,1.2751]
[1729914050499,1.32213845,2456.0,2455.7,2.59723845]
[1729914050700,1.32213845,2456.0,2455.8,0.40778]
[1729914050899,4.52993845,2456.2,2455.9,1.72989845]
[1729914051400,4.52993845,2456.2,2455.9,1.32213845]
[1729914051601,1.32213845,2456.1,2455.9,1.32213845]
[1729914052297,1.32213845,2456.1,2455.8,1.32213845]
[1729914052694,1.32213845,2456.1,2455.8,1.72991845]
[1729914053403,1.32213845,2456.1,2455.8,1.32213845]
[1729914053805,1.32213845,2456.0,2455.8,1.32213845]
[1729914054012,1.32213845,2456.0,2455.8,1.72991845]
[1729914054202,1.32213845,2456.0,2455.8,1.32213845]
[1729914055001,1.32213845,2456.0,2455.8,1.72991845]
[1729914055506,1.32213845,2456.1,2455.9,1.32213845]
[1729914056097,1.72987845,2456.1,2455.9,1.32213845]
[1729914057400,1.32213845,2456.1,2455.9,1.32213845]
[1729914059306,1.72988845,2456.1,2455.9,1.32213845]
[1729914059907,0.40775,2456.0,2455.8,4.52993845]
[1729914060308,1.72988845,2456.0,2455.8,1.32213845]
[1729914060607,2.60128845,2456.0,2455.8,1.32213845]
[1729914061001,2.60128845,2456.0,2455.7,2.59723845]
[1729914061409,2.19353845,2456.0,2455.7,2.59723845]
[1729914061607,0.40777,2455.9,2455.7,2.59723845]
[1729914061806,2.60129845,2456.0,2455.7,2.59723845]
[1729914062300,2.60129845,2456.0,2455.8,1.32213845]
[1729914062502,0.8714,2456.0,2455.8,1.32213845]
[1729914063109,0.40777,2455.9,2455.7,2.59723845]
[1729914063503,0.83777,2455.9,2455.7,2.59723845]
[1729914063700,0.43,2455.9,2455.7,2.59723845]
[1729914064116,0.83777,2455.9,2455.7,2.59723845]
[1729914064514,0.83777,2455.9,2455.7,2.17163845]
[1729914065709,0.40778,2455.8,2455.6,1.32213845]
[1729914065912,0.40778,2455.8,2455.6,1.76123845]
[1729914067013,2.15991845,2455.9,2455.6,1.76123845]
[1729914067612,0.40779,2455.8,2455.6,1.76123845]
[1729914067821,1.75213845,2455.9,2455.6,1.76123845]
[1729914068019,2.15991845,2455.9,2455.6,1.76123845]
[1729914068210,0.40779,2455.8,2455.6,1.76123845]
[1729914069218,2.15991845,2455.9,2455.6,1.76123845]
[1729914069606,1.72993845,2455.7,2455.5,3.2078]
[1729914069814,2.59775845,2455.6,2455.5,3.2078]
[1729914070115,0.40784,2455.5,2455.3,0.4358]
[1729914070313,0.84124,2455.5,2455.3,0.4358]
[1729914070615,1.32213845,2455.4,2455.3,0.4358]
[1729914070912,2.16337845,2455.5,2455.3,0.4358]
[1729914072012,0.40787,2455.3,2455.2,0.4442]
[1729914072211,1.32213845,2455.4,2455.2,0.4442]
[1729914072418,1.72999845,2455.4,2455.2,0.4442]
[1729914073309,1.72999845,2455.4,2455.2,1.76633845]
[1729914073509,2.59775845,2455.6,2455.3,1.32213845]
[1729914073713,1.32213845,2455.7,2455.4,1.76903845]
[1729914073911,1.32213845,2455.7,2455.5,0.4156]
[1729914074714,0.4433,2455.8,2455.6,2.17334845]
[1729914074915,0.8425,2455.9,2455.6,1.76553845]
[1729914074916,2.16463845,2455.9,2455.6,1.76553845]
[1729914075817,2.57240845,2455.9,2455.6,1.76553845]
[1729914082416,1.72992845,2455.8,2455.6,0.4434]
[1729914084822,1.32213845,2455.7,2455.6,0.4434]
[1729914090716,0.84854,2456.1,2455.7,0.4078]
[1729914090925,1.74133845,2456.2,2456.0,1.32213845]
[1729914091121,1.32213845,2456.2,2456.1,0.4204]
[1729914091426,1.72985845,2456.2,2456.1,0.4204]
[1729914098225,3.61543,2456.8,2456.3,0.40769]
[1729914098421,4.0418,2457.1,2456.7,1.32213845]
[1729914098615,0.834,2457.1,2456.8,1.74633845]
[1729914098819,1.32213845,2457.0,2456.9,1.32213845]
[1729914099026,1.32213845,2457.0,2456.9,0.4497]
[1729914100330,1.73803845,2457.1,2456.9,1.77183845]
[1729914100733,2.14560845,2457.1,2456.9,0.4497]
[1729914101122,2.14560845,2457.1,2456.9,1.77183845]
[1729914101422,0.82347,2457.1,2456.9,1.77183845]
[1729914102232,0.4159,2457.1,2456.9,1.77183845]
[1729914102627,2.14560845,2457.1,2456.9,1.77183845]
[1729914103331,1.73803845,2457.1,2456.9,1.77183845]
[1729914104128,1.72969845,2457.2,2456.9,1.77183845]
[1729914104924,1.32213845,2457.2,2456.9,1.77183845]
[1729914105325,1.27854,2457.3,2457.1,1.32213845]
[1729914105529,2.60067845,2457.3,2457.0,1.32213845]
[1729914105721,2.19313845,2457.3,2457.0,1.32213845]
[1729914106234,0.871,2457.3,2457.2,1.32213845]
[1729914117137,1.27854,2457.3,2457.2,1.32213845]
[1729914117632,0.871,2457.3,2457.2,1.32213845]
[1729914121243,1.27854,2457.3,2457.2,1.32213845]
[1729914121443,0.871,2457.3,2457.2,1.32213845]
[1729914121842,1.27854,2457.3,2457.2,1.32213845]
[1729914122437,0.871,2457.3,2457.2,1.32213845]
[1729914123834,1.27854,2457.3,2457.2,1.32213845]
[1729914125149,2.19313845,2457.3,2457.0,4.52993845]
[1729914125446,0.40756,2457.2,2457.0,1.32213845]
[1729914126248,0.40757,2457.1,2457.0,1.32213845]
[1729914126639,0.40756,2457.2,2457.0,1.32213845]
[1729914127841,0.40757,2457.1,2457.0,1.32213845]
[1729914128541,1.32213845,2457.2,2456.9,1.77183845]
[1729914128743,0.40759,2457.0,2456.8,2.18753845]
[1729914128946,0.40759,2457.0,2456.9,1.32213845]
[1729914129841,1.32213845,2457.1,2456.9,1.32213845]
[1729914130247,0.40759,2457.0,2456.9,1.32213845]
[1729914131646,3.2078,2457.4,2456.9,1.32213845]
[1729914131847,0.40749,2457.6,2457.3,1.32213845]
[1729914132054,4.52993845,2457.7,2457.4,1.75733845]
[1729914132255,0.8339,2457.5,2457.4,1.75733845]
[1729914133549,1.32213845,2458.0,2457.4,1.75733845]
[1729914133550,3.61519,2458.2,2457.7,0.40746]
[1729914133847,0.4074,2458.1,2457.9,1.32213845]
[1729914134052,0.8467,2458.1,2457.9,1.32213845]
[1729914135252,0.4393,2458.1,2458.0,1.32213845]
[1729914135550,0.8467,2458.1,2458.0,1.32213845]
[1729914136553,1.76143845,2458.1,2457.9,1.32213845]
[1729914136746,0.4393,2458.1,2457.9,1.32213845]
[1729914136947,0.40742,2458.0,2457.9,1.32213845]
[1729914139151,0.40744,2457.9,2457.8,1.75733845]
[1729914139351,0.40747,2457.8,2457.6,1.32213845]
[1729914139543,0.82487,2457.7,2457.6,1.32213845]
[1729914140153,1.73953845,2457.7,2457.5,1.32213845]
[1729914140448,0.40754,2457.3,2457.1,1.32213845]
[1729914140856,0.40754,2457.3,2457.2,1.32213845]
[1729914141041,0.85144,2457.3,2457.2,1.32213845]
[1729914141949,0.4439,2457.3,2457.2,1.32213845]
[1729914142143,0.40753,2457.4,2457.2,1.32213845]
[1729914142354,0.40754,2457.3,2457.0,2.86301439]
[1729914143153,3.6252,2457.7,2457.0,2.86301439]
[1729914143655,3.6252,2457.7,2456.9,0.4194]
[1729914143656,0.40757,2457.2,2456.9,0.4194]
[1729914144360,0.40754,2457.3,2456.9,0.4194]
[1729914144562,6.48821439,2457.7,2456.9,0.4194]
[1729914144748,0.40755,2457.3,2456.9,0.4194]
[1729914145860,6.48821439,2457.7,2456.9,0.4194]
[1729914145861,0.40756,2457.2,2456.9,0.4194]
[1729914146161,6.48821439,2457.7,2456.9,0.4194]
[1729914146355,0.40755,2457.2,2456.9,0.4194]
[1729914146849,6.48821439,2457.7,2456.9,0.4194]
[1729914146850,0.40754,2457.3,2456.9,0.4194]
[1729914147461,0.8468,2457.2,2456.9,0.4194]
[1729914147758,1.25436,2457.2,2456.9,0.4194]
[1729914148151,0.8468,2457.2,2456.9,0.4194]
[1729914148355,0.40757,2457.1,2456.9,0.4194]
[1729914149352,0.8468,2457.2,2456.9,0.4194]
[1729914149655,0.40757,2457.1,2456.9,0.4194]
[1729914149958,1.25436,2457.2,2456.9,0.4194]
[1729914151258,0.8468,2457.2,2456.9,0.4194]
[1729914151459,1.25436,2457.2,2456.9,0.4194]
[1729914151654,0.8468,2457.2,2456.9,0.4194]
[1729914151855,0.40759,2457.0,2456.9,0.4194]
[1729914152262,0.8468,2457.2,2456.9,0.4194]
[1729914152456,0.40758,2457.1,2456.9,0.4194]
[1729914153348,0.40759,2457.0,2456.8,3.2078]
[1729914153553,3.61538,2457.1,2456.7,0.4523]
[1729914153752,3.2078,2457.1,2456.7,0.4523]
[1729914153958,0.40759,2457.0,2456.7,0.8976]
[1729914154462,0.40762,2456.8,2456.7,0.8976]
[1729914154658,0.40765,2456.7,2456.5,3.2078]
[1729914154861,0.40765,2456.6,2456.5,3.2078]
[1729914155257,0.8619,2456.8,2456.5,3.2078]
[1729914155560,0.40764,2456.7,2456.5,3.2078]
[1729914156057,0.40765,2456.6,2456.5,3.2078]
[1729914156261,4.0704,2456.7,2456.4,0.8975]
[1729914156559,0.4077,2456.4,2456.0,4.06255]
[1729914156751,0.4077,2456.3,2456.1,0.8624]
[1729914156952,3.2078,2456.5,2456.1,0.8624]
[1729914157163,0.40771,2456.3,2456.1,0.8624]
[1729914158152,0.425,2456.4,2456.1,0.8624]
[1729914158357,0.40772,2456.2,2456.1,0.8624]
[1729914158764,4.47892,2456.2,2456.1,0.8624]
[1729914160561,4.47892,2456.2,2456.1,0.4148]
[1729914163165,4.0712,2456.2,2455.8,0.4221]
[1729914163361,0.40777,2455.9,2455.8,0.8527]
[1729914164064,0.40777,2455.9,2455.7,3.2078]
[1729914164065,0.40778,2455.8,2455.7,3.2078]
[1729914164261,4.47978,2455.8,2455.7,3.2078]
[1729914166873,4.47978,2455.8,2455.5,4.06]
[1729914167171,0.4078,2455.7,2455.5,4.06]
[1729914167369,0.8981,2455.9,2455.5,4.06]
[1729914167568,0.40779,2455.8,2455.5,4.06]
[1729914168367,0.8981,2455.9,2455.5,4.06]
[1729914168775,0.4078,2455.8,2455.5,4.06]
[1729914169273,0.40783,2455.6,2455.2,3.2078]
[1729914169462,0.40783,2455.6,2455.3,1.2831]
[1729914169869,3.2078,2455.8,2455.3,1.2831]
[1729914170158,0.40783,2455.6,2455.3,1.2831]
[1729914172275,0.40781,2455.7,2455.3,1.2831]
[1729914172574,0.40779,2455.8,2455.3,1.69097]
[1729914172965,0.40778,2455.9,2455.4,0.40784]
[1729914174462,0.40775,2456.0,2455.6,0.40781]
[1729914174676,0.40775,2456.0,2455.7,0.8521]
[1729914174872,0.40775,2456.0,2455.8,0.4515]
[1729914177468,0.40772,2456.2,2455.8,0.4515]
[1729914177674,0.40774,2456.1,2455.8,0.4515]
[1729914177873,0.40774,2456.1,2455.9,3.2078]
[1729914178073,6.07081439,2456.4,2455.9,3.2078]
[1729914178272,3.2078,2456.4,2456.0,0.40774]
[1729914178579,3.2078,2456.4,2456.1,0.4343]
[1729914178872,3.2078,2456.4,2456.1,1.28423]
[1729914179068,3.2078,2456.4,2456.1,5.35543]
[1729914179671,0.40768,2456.5,2456.1,5.35543]
[1729914179873,0.40768,2456.5,2456.1,1.28423]
[1729914180875,2.86301439,2456.6,2456.1,0.8765]
[1729914181077,2.86301439,2456.6,2456.1,1.28423]
[1729914181078,0.40766,2456.6,2456.1,1.28423]
[1729914182065,0.40768,2456.5,2456.1,0.8765]
[1729914182972,2.86301439,2456.7,2456.1,1.28423]
[1729914183170,0.40766,2456.6,2456.1,1.28423]
[1729914184175,0.40766,2456.6,2456.1,0.8765]
[1729914184368,0.40766,2456.6,2456.1,1.28423]
[1729914185976,0.40768,2456.5,2456.1,0.8765]
[1729914186273,0.40768,2456.5,2456.1,1.28423]
[1729914186676,0.40768,2456.5,2456.1,0.8765]
[1729914187477,0.40768,2456.5,2456.1,1.28423]
[1729914188480,0.40768,2456.5,2456.1,0.8765]
[1729914188679,0.8308,2456.8,2456.2,0.40771]
[1729914188680,0.40765,2456.6,2456.2,0.40771]
[1729914188881,0.40765,2456.6,2456.3,0.4494]
[1729914189282,3.69381439,2456.8,2456.3,0.4494]
[1729914189477,3.69381439,2456.8,2456.3,0.85709]
[1729914189478,0.40764,2456.7,2456.3,0.85709]
[1729914189778,0.40765,2456.7,2456.3,0.4494]
[1729914190085,0.40765,2456.6,2456.3,0.4494]
[1729914193074,0.40769,2456.4,2456.2,3.2078]
[1729914194282,1.32193318,2456.3,2456.2,3.2078]
[1729914194483,1.32193318,2456.4,2456.2,4.52973318]
[1729914195173,1.32193318,2456.7,2456.3,1.32193318]
[1729914195372,1.32193318,2456.7,2456.4,1.75343318]
[1729914195579,1.32193318,2456.7,2456.5,0.4111]
[1729914195781,1.32193318,2456.7,2456.5,0.844]
[1729914198386,1.72957318,2456.7,2456.5,0.844]
[1729914198579,1.32193318,2456.7,2456.5,0.844]
[1729914199289,1.32193318,2456.6,2456.5,0.844]
[1729914204379,1.72958318,2456.6,2456.3,1.32193318]
[1729914204578,1.32193318,2456.6,2456.3,1.73663318]
[1729914204780,1.32193318,2456.6,2456.4,1.32193318]
[1729914205278,1.32193318,2456.6,2456.3,3.03783318]
[1729914205484,1.32193318,2456.6,2456.3,2.63013318]
[1729914205690,1.72959318,2456.6,2456.3,2.63013318]
[1729914205886,1.32193318,2456.4,2456.3,1.3082]
[1729914206190,1.32193318,2456.4,2456.3,0.8659]
[1729914206386,1.32193318,2456.4,2456.2,3.2078]
[1729914206387,2.18262318,2456.4,2456.2,3.2078]
[1729914206584,1.76963318,2456.3,2456.2,3.2078]
[1729914206785,2.17733318,2456.3,2456.2,3.2078]
[1729914207084,1.76963318,2456.3,2456.2,3.2078]
[1729914207887,2.17733318,2456.3,2456.2,3.2078]
[1729914208285,1.76963318,2456.3,2456.2,3.2078]
[1729914208791,2.17733318,2456.3,2456.2,3.2078]
[1729914209388,2.61593318,2456.3,2456.2,3.2078]
[1729914210693,2.20823318,2456.3,2456.2,3.2078]
[1729914211193,0.4477,2456.3,2456.2,4.52973318]
[1729914212186,1.77493318,2456.4,2456.2,4.52973318]
[1729914212380,0.4386,2456.6,2456.3,1.32193318]
[1729914212381,1.76053318,2456.6,2456.3,1.32193318]
[1729914212589,1.76053318,2456.6,2456.4,0.4308]
[1729914212590,1.32193318,2456.5,2456.4,0.4308]
[1729914213290,1.32193318,2456.5,2456.3,2.17793318]
[1729914213486,1.32193318,2456.5,2456.4,0.8424]
[1729914213689,1.32193318,2456.7,2456.4,2.16433318]
[1729914213893,1.32193318,2456.6,2456.4,2.16433318]
[1729914214783,1.32193318,2456.7,2456.5,1.32193318]